Workbook

Sheet ACA SUMMARY
A1: COLUMBIA GAS OF KENTUCKY, INC.
A3: STATEMENT SHOWING COMPUTATION OF
A4: ACTUAL GAS COST ADJUSTMENT (ACA)
A5: BASED ON THE THREE MONTHS ENDED MAY 31, 2022
C7: Total | D7: Standby | E7: Net | F7: Average
C8: Sales | D8: Service | E8: Applicable | F8: Expected | H8: Standby | J8: Total | L8: (OVER)/
A9: Line | C9: Volumes | D9: Sales | E9: Sales | F9: Gas Cost | G9: Gas Cost | H9: Service | I9: Gas Left On | J9: Gas Cost | K9: Cost of Gas | L9: UNDER
A10: No. | B10: Month | C10: Per Books | D10: Volumes | E10: Volumes | F10: Rate | G10: Recovery | H10: Recovery | I10: Recovery | J10: Recovery | K10: Purchased | L10: RECOVERY
C11: Mcf | D11: Mcf | E11: Mcf | F11: $/Mcf | G11: $ | H11: $ | J11: $ | K11: $ | L11: $
C12: (1) | D12: (2) | E12: (3)=(1)-(2) | F12: (4) = (5/3) | G12: -5 | H12: (6) | I12: -7 | J12: (8)=(5)+(6)-(7) | K12: -9 | L12: (10)=(9)-(8)
A14: 1 | B14: 2022-03-01 | C14: =987612+493379+26923+3488 -> 1511402 | D14: ='SS & GSO'!F15 -> 526 | E14: =C14-D14 -> 1510876 | F14: =ROUND(+G14/E14,4) -> 5.4244 | G14: 8195531.88 | H14: 12288.33 | I14: -2966.62 | J14: =G14+H14-I14 -> 8210786.83 | K14: 7455779.74 | L14: =K14-J14 -> -755007.09
A15: 2 | B15: =+B14+31 -> 2022-04-01 | C15: =738594+399681+16947+1268 -> 1156490 | D15: ='SS & GSO'!F16 -> 0 | E15: =C15-D15 -> 1156490 | F15: =ROUND(+G15/E15,4) -> 5.4283 | G15: 6277811.1 | H15: 9611.99 | I15: -3448.69 | J15: =G15+H15-I15 -> 6290871.78 | K15: 15830504.64 | L15: =K15-J15 -> 9539632.86
A16: 3 | B16: =+B15+31 -> 2022-05-02 | C16: =301089+200784+13878+775 -> 516526 | D16: ='SS & GSO'!F17 -> 210 | E16: =C16-D16 -> 516316 | F16: =ROUND(+G16/E16,4) -> 5.4303 | G16: 2803745.36 | H16: 10402.35 | I16: -1609.78 | J16: =G16+H16-I16 -> 2815757.49 | K16: 11577196.13 | L16: =K16-J16 -> 8761438.64
A18: =+A16+1 -> 4 | B18: TOTAL | C18: =SUM(C14:C16) -> 3184418 | D18: =SUM(D14:D16) -> 736 | E18: =SUM(E14:E16) -> 3183682 | G18: =SUM(G14:G16) -> 17277088.34 | H18: 32302.67 | I18: -8025.09 | J18: 17317416.1 | K18: 34863480.51 | L18: 17546064.41
A20: =+A18+1 -> 5 | B20: Off-System Sales | L20: -239761.15
A21: =+A20+1 -> 6 | B21: Capacity Release | L21: 0
A23: =A21+1 -> 7 | B23: TOTAL (OVER)/UNDER-RECOVERY | L23: =SUM(L18:L21) -> 17306303.26
A25: =+A23+1 -> 8 | B25: Demand Revenues Received | L25: 5334538.923
A26: =+A25+1 -> 9 | B26: Demand Cost of Gas | L26: 3935855.38
A27: =+A26+1 -> 10 | B27: Demand (Over)/Under Recovery | L27: =L26-L25 -> -1398683.543
A28: =+A27+1 -> 11 | B28: Expected Sales Volumes for the Twelve Months End August 31, 2023 | L28: =(12547000/1.101)*(1-0.003)-3002 -> 11358813.62
A30: =+A28+1 -> 12 | B30: DEMAND ACA TO EXPIRE UNIT 21 AUGUST (AUGUST 28, 2023) | L30: =ROUND(L27/L28,4) -> -0.1231
A32: =+A30+1 -> 13 | B32: Commodity Revenues Received | L32: 11982877.19
A33: =+A32+1 -> 14 | B33: Commodity Cost of Gas | L33: 30687863.98
A34: =+A33+1 -> 15 | B34: Commodity (Over)/Under Recovery | L34: =L33-L32 -> 18704986.79
A35: =+A34+1 -> 16 | B35: Gas Cost Uncollectible ACA | L35: ='Uncollectible ACA'!F12 -> 83988.99
A36: =+A35+1 -> 17 | B36: Total Commodity (Over)/Under Recovery | L36: =L35+L34 -> 18788975.78
A37: =+A36+1 -> 18 | B37: Expected Sales Volumes for the Twelve Months End August 31, 2023 | L37: =L28 -> 11358813.62
A39: =+A37+1 -> 19 | B39: COMMODITY ACA TO EXPIRE UNIT 21 AUGUST (AUGUST 28, 2023) | L39: =ROUND(L36/L37,4) -> 1.6541
A41: =+A39+1 -> 20 | B41: TOTAL ACA TO EXPIRE UNIT 21 AUGUST (AUGUST 28, 2023) | L41: =L30+L39 -> 1.531

Sheet SS & GSO
A3: STATEMENT SHOWING ACTUAL COST
A4: RECOVERY FROM CUSTOMERS TAKING STANDBY
A5: SERVICE UNDER RATE SCHEDULE IS AND GSO
A6: ='ACA SUMMARY'!A5:L5 -> BASED ON THE THREE MONTHS ENDED MAY 31, 2022
G8: Average
F9: SS | G9: SS | H9: SS
A10: LINE | F10: Commodity | G10: Recovery | H10: Commodity
A11: NO. | B11: MONTH | F11: Volumes | G11: Rate | H11: Recovery
F12: (1) | G12: (2) | H12: (3)
F13: Mcf | G13: $/Mcf | H13: $
A15: 1 | B15: ='ACA SUMMARY'!B14 -> 2022-03-01 | F15: 526 | G15: =IF(F15=0,0,ROUND(H15/F15,4)) -> 5.0881 | H15: 2676.34
A16: 2 | B16: ='ACA SUMMARY'!B15 -> 2022-04-01 | F16: 0 | G16: =IF(F16=0,0,ROUND(H16/F16,4)) -> 0 | H16: 0
A17: 3 | B17: ='ACA SUMMARY'!B16 -> 2022-05-02 | F17: 210 | G17: =IF(F17=0,0,ROUND(H17/F17,4)) -> 3.7636 | H17: 790.36
A19: =+A17+1 -> 4 | B19: Total SS Commodity Recovery | H19: =SUM(H15:H17) -> 3466.7
G24: Average
F25: SS | G25: SS | H25: SS
A26: LINE | F26: Demand | G26: Demand | H26: Demand
A27: NO. | B27: MONTH | F27: Volumes | G27: Rate | H27: Recovery
F28: (1) | G28: (2) | H28: (3)
F29: Mcf | G29: $/Mcf | H29: $
A31: =+A19+1 -> 5 | B31: =B15 -> 2022-03-01 | F31: 1040 | G31: =IF(F31=0,0,ROUND(H31/F31,4)) -> 9.2423 | H31: 9611.99
A32: =+A31+1 -> 6 | B32: =B16 -> 2022-04-01 | F32: 1040 | G32: =IF(F32=0,0,ROUND(H32/F32,4)) -> 9.2423 | H32: 9611.99
A33: =+A32+1 -> 7 | B33: =B17 -> 2022-05-02 | F33: 1040 | G33: =IF(F33=0,0,ROUND(H33/F33,4)) -> 9.2423 | H33: 9611.99
A35: =+A33+1 -> 8 | B35: Total SS Demand Recovery | H35: =SUM(H31:H33) -> 28835.97
A38: =+A35+1 -> 9 | B38: TOTAL SS AND GSO RECOVERY | H38: =H19+H35 -> 32302.67

Sheet Uncollectible ACA
A2: Columbia Gas of Kentucky, Inc.
A3: Gas Cost Uncollectible Charge - Actual Cost Adjustment
A4: ='ACA SUMMARY'!A5:L5 -> BASED ON THE THREE MONTHS ENDED MAY 31, 2022
A5: Line
A6: No. | B6: Class | C6: ='ACA SUMMARY'!B14 -> 2022-03-01 | D6: ='ACA SUMMARY'!B15 -> 2022-04-01 | E6: ='ACA SUMMARY'!B16 -> 2022-05-02 | F6: Total
A8: 1 | B8: Actual Cost | C8: 23786.4 | D8: 58695.25 | E8: 52610.51 | F8: =SUM(C8:E8) -> 135092.16
A10: 2 | B10: Actual Recovery | C10: 23944.63 | D10: 18857.12 | E10: 8301.42 | F10: =SUM(C10:E10) -> 51103.17
A12: =A10+1 -> 3 | B12: (Over)/Under Activity | C12: =C8-C10 -> -158.23 | D12: =D8-D10 -> 39838.13 | E12: =E8-E10 -> 44309.09 | F12: =F8-F10 -> 83988.99
